bitfinex-derivatives/quotes_ETHF0:USTF0_20240907
["timestamp","ask_amount","ask_price","bid_price","bid_amount"]
[1725697454952,0.43895,2278.5,2278.3,1.18668]
[1725697455252,0.43897,2278.4,2278.3,0.7477]
[1725697455448,0.48607,2278.4,2278.3,0.7477]
[1725697455641,0.0471,2278.4,2278.3,1.18668]
[1725697456546,0.48607,2278.4,2278.3,0.7477]
[1725697456747,0.0471,2278.4,2278.3,0.7477]
[1725697456948,0.48607,2278.4,2278.3,0.7477]
[1725697457349,0.0471,2278.4,2278.3,0.7477]
[1725697457749,0.0471,2278.4,2278.3,1.18668]
[1725697458251,0.0471,2278.4,2278.3,0.7477]
[1725697458753,0.0471,2278.4,2278.3,1.18668]
[1725697459153,0.0471,2278.4,2278.3,0.7477]
[1725697459349,0.48607,2278.4,2278.3,0.7477]
[1725697459556,0.0471,2278.4,2278.3,0.7477]
[1725697461153,0.439,2278.2,2278.1,0.367]
[1725697461357,0.439,2278.2,2278.1,0.7454]
[1725697463554,0.439,2278.2,2278.1,0.3784]
[1725697463851,0.43902,2278.1,2278.0,0.3574]
[1725697464451,0.43902,2278.2,2278.0,0.3574]
[1725697464647,0.43902,2278.1,2278.0,0.3574]
[1725697466159,0.43904,2278.0,2277.9,0.3957]
[1725697466363,0.82044,2278.0,2277.9,0.3957]
[1725697466661,18.73643,2278.0,2277.6,1.14464233]
[1725697466964,3.4791,2277.8,2277.6,1.14464233]
[1725697467259,3.04,2277.8,2277.7,0.4391]
[1725697467571,0.82046,2278.0,2277.7,0.4391]
[1725697467750,4.82947,2277.9,2277.6,0.43911]
[1725697468062,5.3334431,2277.9,2277.6,0.43911]
[1725697469650,4.8943731,2277.9,2277.7,0.43908]
[1725697469845,4.8943731,2277.9,2277.4,7.4048]
[1725697470065,7.9343731,2277.9,2277.4,0.43915]
[1725697470361,0.3573,2277.8,2277.4,0.43915]
[1725697470559,0.4391,2277.7,2277.4,0.43915]
[1725697470756,0.3573,2277.8,2277.3,0.743]
[1725697470757,4.8943731,2277.9,2277.3,6.9908]
[1725697470966,3.2078,2278.1,2278.0,0.43904]
[1725697471150,3.2078,2278.1,2277.7,6.2478]
[1725697471349,3.2078,2278.1,2277.9,0.43904]
[1725697471559,3.2078,2278.1,2278.0,0.43904]
[1725697471756,0.43898,2278.3,2277.8,2.26844233]
[1725697471953,0.43898,2278.3,2278.0,0.43904]
[1725697472357,0.43898,2278.3,2278.0,41.23904]
[1725697472554,0.439,2278.2,2278.0,40.8]
[1725697472763,0.43902,2278.1,2278.0,40.8]
[1725697473758,0.43906,2277.9,2277.8,0.7586]
[1725697474555,10.3904,2277.9,2277.4,4.35244233]
[1725697474761,3.2078,2277.5,2277.1,3.2078]
[1725697475065,0.43917,2277.4,2277.1,3.2078]
[1725697475865,0.43918,2277.3,2277.1,3.2078]
[1725697476271,1.09805,2277.1,2276.6,1.14464233]
[1725697476561,3.2078,2277.2,2276.7,3.2078]
[1725697476767,1.45751,2277.6,2277.1,0.43921]
[1725697476768,4.02605,2277.5,2277.1,0.43921]
[1725697476968,0.81825,2277.5,2277.2,0.3854]
[1725697477156,4.71784311,2277.5,2277.2,1.19939]
[1725697477356,4.71784311,2277.5,2277.2,0.7602]
[1725697477357,0.43914,2277.5,2277.2,0.7602]
[1725697477670,3.83883,2277.6,2277.2,1.19939]
[1725697478057,0.43914,2277.5,2277.2,1.19939]
[1725697478253,0.43914,2277.5,2277.2,0.7602]
[1725697478968,0.43916,2277.4,2277.2,0.7602]
[1725697479158,3.04,2277.6,2277.3,0.43917]
[1725697479559,3.5857,2277.8,2277.3,0.43917]
[1725697479560,3.2078,2277.8,2277.6,0.43911]
[1725697479760,3.2078,2277.8,2277.7,1.1997]
[1725697480169,3.2078,2277.8,2277.7,0.7606]
[1725697480569,3.2078,2277.8,2277.7,1.1997]
[1725697482173,3.2078,2277.8,2277.7,0.7606]
[1725697482785,3.2078,2277.8,2277.7,1.1997]
[1725697483784,3.2078,2277.8,2277.7,0.7606]
[1725697483987,4.13766,2278.0,2277.3,3.2078]
[1725697484189,0.43912,2277.6,2277.4,0.7325]
[1725697484386,0.43911,2277.7,2277.4,1.17165]
[1725697484987,0.43911,2277.7,2277.5,0.3573]
[1725697485189,3.2078,2277.9,2277.5,41.1573]
[1725697485190,0.43912,2277.6,2277.5,41.1573]
[1725697485388,0.43911,2277.7,2277.5,41.1573]
[1725697485698,0.43908,2277.8,2277.5,41.1573]
[1725697485890,0.43908,2277.8,2277.6,0.43912]
[1725697486190,3.2078,2277.9,2277.6,0.43912]
[1725697486589,0.43907,2277.9,2277.7,0.4391]
[1725697486794,0.43907,2277.9,2277.8,0.3878]
[1725697486991,0.43907,2277.9,2277.8,0.7516]
[1725697488181,0.43908,2277.8,2277.6,0.43911]
[1725697488388,0.758,2278.0,2277.6,0.7513]
[1725697488595,0.43909,2277.8,2277.6,0.7513]
[1725697489397,0.3699,2278.1,2277.7,0.43909]
[1725697489690,0.43907,2277.9,2277.6,1.19041]
[1725697490085,0.43907,2277.9,2277.7,0.4391]
[1725697490486,0.43907,2277.9,2277.6,1.19041]
[1725697491388,0.43905,2278.0,2277.7,0.43908]
[1725697491688,0.43907,2277.9,2277.6,0.7513]
[1725697492590,0.3699,2278.1,2277.6,1.19041]
[1725697492591,0.43909,2277.8,2277.6,1.19041]
[1725697492893,0.43907,2277.9,2277.6,1.19041]
[1725697493102,0.43908,2277.9,2277.6,1.19041]
[1725697493606,0.4391,2277.7,2277.6,0.7513]
[1725697496994,0.43909,2277.8,2277.6,0.7513]
[1725697497295,1.09771,2277.8,2277.3,3.2078]
[1725697497496,0.43915,2277.5,2277.4,0.3666]
[1725697499494,0.43913,2277.6,2277.4,0.3666]
[1725697499893,0.43913,2277.6,2277.4,0.80576]
[1725697500388,0.43913,2277.6,2277.4,0.3666]
[1725697500594,0.80391,2277.7,2277.4,0.80576]
[1725697501102,0.43912,2277.6,2277.4,0.80576]
[1725697501305,0.80391,2277.7,2277.4,0.80576]
[1725697501498,3.2078,2277.9,2277.4,0.80576]
[1725697501499,0.43909,2277.8,2277.5,0.43914]
[1725697501802,0.43909,2277.8,2277.6,0.7508]
[1725697502208,0.4391,2277.8,2277.6,0.7508]
[1725697502502,0.4391,2277.7,2277.6,0.7508]
[1725697502707,3.2549,2277.9,2277.7,0.43909]
[1725697502900,3.2549,2277.9,2277.8,0.3766]
[1725697503101,3.2549,2277.9,2277.8,0.81568]
[1725697503296,3.2549,2277.9,2277.8,0.3766]
[1725697503499,3.2549,2277.9,2277.8,0.81568]
[1725697504603,3.2549,2277.9,2277.8,0.3766]
[1725697504793,3.2549,2277.9,2277.6,0.7508]
[1725697505895,0.43908,2277.8,2277.6,0.7508]
[1725697506306,0.4391,2277.7,2277.6,0.7508]
[1725697506696,0.43909,2277.8,2277.6,0.7508]
[1725697508306,0.4391,2277.7,2277.6,0.7508]
[1725697509702,0.43909,2277.8,2277.6,0.7508]
[1725697509905,0.4391,2277.7,2277.6,0.7508]
[1725697510102,0.43909,2277.8,2277.6,0.7508]
[1725697510703,0.0471,2277.9,2277.6,0.7508]
[1725697510903,0.4391,2277.8,2277.6,0.7508]
[1725697511113,0.0471,2277.9,2277.6,1.18991]
[1725697511799,0.0471,2277.9,2277.6,0.7508]
[1725697512000,0.0471,2277.9,2277.7,0.43909]
[1725697512199,0.0471,2277.9,2277.7,1.58373233]
[1725697512400,0.0471,2277.9,2277.8,0.43908]
[1725697513701,0.0471,2277.9,2277.7,1.58373233]
[1725697514306,0.0471,2277.9,2277.8,0.43908]
[1725697515303,0.0471,2277.9,2277.8,8.17054495]
[1725697515610,0.0471,2277.9,2277.8,8.1705186]
[1725697515803,0.0471,2277.9,2277.8,3.7801186]
[1725697515998,0.0471,2277.9,2277.8,8.1705186]
[1725697516304,0.43899,2278.3,2277.8,8.31189146]
[1725697516620,0.3667,2278.4,2278.0,0.43903]
[1725697516914,0.3667,2278.4,2278.1,0.7797]
[1725697517297,0.3667,2278.4,2278.1,1.21871]
[1725697517502,3.2078,2278.5,2278.2,0.43899]
[1725697517804,3.64675,2278.5,2278.2,0.43899]
[1725697517999,3.64675,2278.5,2278.1,1.92937594]
[1725697518000,3.64675,2278.5,2278.1,2.36838594]
[1725697519009,0.43895,2278.5,2278.1,2.36838594]
[1725697519403,0.43895,2278.5,2278.1,0.7797]
[1725697519404,6.2478,2278.5,2278.1,0.7797]
[1725697519605,0.43899,2278.3,2278.1,0.7797]
[1725697520107,0.439,2278.2,2278.1,0.7797]
[1725697520414,0.7982,2278.3,2278.1,0.7797]
[1725697520605,0.3592,2278.3,2278.1,0.7797]
[1725697520801,3.2078,2278.5,2278.1,0.7797]
[1725697521006,3.04,2278.6,2278.1,1.92937594]
[1725697521200,0.43897,2278.4,2278.1,0.7797]
[1725697521502,5.51594687,2278.5,2278.1,1.21872]
[1725697521802,5.07698687,2278.5,2278.3,0.43898]
[1725697522009,4.71778687,2278.5,2278.1,1.92937594]
[1725697522204,5.54484687,2278.5,2278.1,2.36838594]
[1725697522406,0.43897,2278.4,2278.1,2.36838594]
[1725697522608,5.10588687,2278.5,2278.1,2.36838594]
[1725697522809,0.43897,2278.4,2278.1,1.21871]
[1725697523210,5.54484687,2278.5,2278.1,2.36838594]
[1725697523410,5.54484687,2278.5,2278.1,1.21871]
[1725697524719,5.10588687,2278.5,2278.1,1.21871]
[1725697525018,5.54484687,2278.5,2278.1,2.36838594]
[1725697525213,5.54484687,2278.5,2278.1,1.21871]
[1725697526116,5.54484687,2278.5,2278.2,0.439]
[1725697526515,5.54484687,2278.5,2278.1,0.7797]
[1725697526719,5.54484687,2278.5,2278.2,0.439]
[1725697527218,0.43897,2278.4,2278.2,0.439]
[1725697527406,0.43897,2278.4,2278.1,1.21871]
[1725697528417,5.54484687,2278.5,2278.2,0.439]
[1725697528818,3.04,2278.4,2278.0,1.14967594]
[1725697529120,0.43902,2278.1,2278.0,0.7392]
[1725697529310,0.2195408,2278.2,2278.0,0.7392]
[1725697529620,0.3888,2278.3,2278.0,1.17824]
[1725697529831,3.5959,2278.5,2278.0,0.7392]
[1725697530119,3.5959,2278.5,2278.1,0.82331]
[1725697530120,0.43897,2278.4,2278.1,0.82331]
[1725697531618,4.03486,2278.5,2278.2,0.439]
[1725697531817,0.43897,2278.4,2278.2,0.439]
[1725697532018,4.03486,2278.5,2278.2,0.439]
[1725697534123,0.82706,2278.5,2278.2,0.439]
[1725697534418,4.03486,2278.5,2278.2,0.439]
[1725697534713,0.82706,2278.5,2278.2,0.439]
[1725697534906,0.43897,2278.4,2278.2,0.439]
[1725697537823,0.43897,2278.4,2278.1,0.82331]
[1725697538321,0.43897,2278.4,2278.2,0.439]
[1725697538523,0.82706,2278.5,2278.2,0.439]
[1725697539021,0.43897,2278.4,2278.2,0.439]
[1725697539211,0.43897,2278.4,2278.1,0.3843]
[1725697539725,0.43897,2278.4,2278.2,0.439]
[1725697540021,0.43897,2278.4,2278.1,0.3843]
[1725697540022,0.43897,2278.4,2278.1,0.82331]
[1725697540415,0.43897,2278.4,2278.2,0.439]
[1725697542122,0.3881,2278.5,2278.2,0.439]
[1725697542920,0.43897,2278.4,2278.2,0.439]
[1725697543119,0.43897,2278.4,2278.3,0.3828]
[1725697545725,0.82706,2278.5,2278.3,0.3828]
[1725697545925,3.2078,2278.8,2278.4,7.5966]
[1725697546221,0.43885,2279.1,2278.8,0.43888]
[1725697546424,0.43885,2279.1,2278.9,1.1359]
[1725697546619,0.43885,2279.0,2278.9,41.9359]
[1725697547323,5.0710468,2279.2,2278.9,41.9359]
[1725697547324,0.43884,2279.1,2278.9,1.1359]
[1725697547726,5.5098668,2279.2,2278.9,42.37476]
[1725697547930,5.5098668,2279.2,2279.0,0.43885]
[1725697548529,5.5098668,2279.2,2278.9,42.37476]
[1725697548734,5.5098668,2279.2,2278.9,41.9359]
[1725697549027,0.43877,2279.4,2279.1,0.43883]
[1725697549725,3.64654,2279.6,2279.4,0.43877]
[1725697549925,5.89053182,2280.0,2279.5,1.19295]
[1725697549926,3.79975356,2279.9,2279.5,1.19295]
[1725697550232,3.79975356,2279.9,2279.5,1.19294]
[1725697550432,0.4387,2279.8,2279.5,1.19294]
[1725697552131,0.43871,2279.8,2279.5,1.19295]
[1725697553327,0.43872,2279.7,2279.5,1.19295]
[1725697555247,0.43872,2279.7,2279.5,0.7542]
[1725697556636,0.43872,2279.7,2279.5,1.19295]
[1725697557241,0.43872,2279.7,2279.5,0.7542]
[1725697558139,0.43871,2279.8,2279.5,1.19295]
[1725697558341,3.79975356,2279.9,2279.5,1.19295]
[1725697558542,0.4387,2279.8,2279.5,1.19295]
[1725697558737,0.43872,2279.7,2279.5,1.19295]
[1725697559753,0.43872,2279.7,2279.5,0.7542]
[1725697562048,3.79975356,2279.9,2279.5,1.19294]
[1725697562239,0.4387,2279.8,2279.6,3.04]
[1725697563442,0.4387,2279.8,2279.6,3.47873]
[1725697563747,4.23968657,2279.9,2279.6,3.47873]
[1725697564540,0.4387,2279.8,2279.6,3.47873]
[1725697564942,4.23967657,2279.9,2279.6,3.47873]
[1725697565143,0.4387,2279.8,2279.6,3.47873]
[1725697565945,0.4387,2279.8,2279.7,1.26]
[1725697567842,4.23967657,2279.9,2279.7,1.26]
[1725697568247,4.23967657,2279.9,2279.8,1.26]
[1725697569939,3.42779657,2279.9,2279.8,1.26]
[1725697570145,0.43867,2280.0,2279.8,1.26]
[1725697570346,0.43867,2280.0,2279.9,0.7671]
[1725697570642,0.43867,2280.0,2279.9,1.1277]
[1725697570844,0.43865,2280.1,2279.9,1.1277]
[1725697571043,0.43865,2280.1,2279.9,1.56638]
[1725697571647,0.43865,2280.1,2279.9,1.1277]
[1725697573351,0.43863,2280.2,2279.9,1.56637]
[1725697573548,3.2078,2280.3,2279.9,1.1277]
[1725697573748,3.2078,2280.3,2279.9,1.56637]
[1725697573749,0.43864,2280.1,2279.9,1.56637]
[1725697576057,0.43864,2280.1,2279.9,1.1277]
[1725697576251,0.43864,2280.1,2279.3,4.197]
[1725697576252,5.56445,2280.0,2279.3,4.197]
[1725697576454,4.3046,2279.7,2279.2,1.1587]
[1725697576754,0.43878,2279.4,2279.2,2.4187]
[1725697576950,0.7294,2280.0,2279.5,0.43874]
[1725697577155,0.7294,2280.0,2279.6,1.16573]
[1725697577156,0.4387,2279.8,2279.6,1.16573]
[1725697579157,0.43872,2279.7,2279.6,0.727]
[1725697579455,0.43871,2279.8,2279.6,0.727]
[1725697579642,0.43872,2279.7,2279.6,0.727]
[1725697580052,0.43871,2279.8,2279.6,1.16573]
[1725697580359,3.2078,2280.1,2279.8,0.43869]
[1725697580547,0.43866,2280.0,2279.9,0.3634]
[1725697580750,3.64645,2280.1,2279.9,0.80207]
[1725697581055,0.43865,2280.1,2280.0,0.3692]
[1725697581246,0.43865,2280.1,2280.0,0.7334]
[1725697581647,8.78758144,2280.2,2280.0,0.7334]
[1725697582256,0.43864,2280.1,2280.0,0.7334]
[1725697582443,0.43864,2280.1,2280.0,0.3692]
[1725697582752,0.43867,2280.0,2279.7,0.43871]
[1725697582949,0.43867,2280.0,2279.7,1.18801]
[1725697583151,0.43867,2280.0,2279.8,4.3864]
[1725697583355,0.43867,2280.0,2279.8,4.7439]
[1725697583655,0.43867,2280.0,2279.9,4.3864]
[1725697589755,0.43867,2280.0,2279.8,0.7962]
[1725697589952,0.43867,2280.0,2279.8,5.1826]
[1725697590847,0.43867,2280.0,2279.8,0.7962]
[1725697593656,0.43864,2280.1,2279.9,0.43866]
[1725697593957,3.64643,2280.2,2279.9,0.43868]
[1725697594164,3.2078,2280.2,2280.0,0.43864]
[1725697594357,3.64642,2280.2,2280.1,0.7785]
[1725697594556,3.64642,2280.2,2280.1,1.1515]
[1725697597571,3.2078,2280.2,2280.1,1.1515]
[1725697598167,3.2078,2280.2,2280.1,1.59014]
[1725697598568,0.43859,2280.4,2280.2,0.43862]
[1725697598776,0.4386,2280.3,2280.1,1.59013]
[1725697598962,0.43859,2280.4,2280.1,1.1515]
[1725697599166,0.43859,2280.4,2280.1,1.59012]
[1725697599869,0.43859,2280.4,2280.2,0.43862]
[1725697599870,0.43858,2280.4,2280.2,0.43862]
[1725697600072,0.43858,2280.4,2280.2,1.69862]
[1725697600660,0.43858,2280.4,2280.2,1.26]
[1725697601172,0.43864,2280.1,2280.0,1.14967594]
[1725697601471,0.43864,2280.1,2279.9,2.40967594]
[1725697601972,0.43864,2280.1,2279.9,6.79527594]
[1725697602269,0.79783,2280.2,2279.9,7.23393594]
[1725697602470,0.79783,2280.2,2280.0,1.96112594]
[1725697602673,0.79783,2280.2,2280.0,0.81145]
[1725697602976,0.79783,2280.2,2280.0,1.96112594]
[1725697603968,0.43861,2280.3,2280.1,1.69864]
[1725697604168,0.4386,2280.4,2280.2,0.7611]
[1725697604371,0.4386,2280.4,2280.3,0.3786]
[1725697610479,0.43857,2280.5,2280.3,0.8172]
[1725697610673,0.43857,2280.5,2280.4,1.26]
[1725697611278,0.43855,2280.6,2280.4,1.26]
[1725697611467,0.43855,2280.6,2280.4,1.69858]
[1725697614081,0.3771,2280.9,2280.4,2.40967594]
[1725697614275,0.43851,2280.8,2280.7,1.26]
[1725697616179,1.47334,2280.9,2280.6,0.3791]
[1725697616180,0.43852,2280.7,2280.6,0.3791]
[1725697617671,0.43852,2280.8,2280.6,0.81763]
[1725697618881,0.43852,2280.8,2280.7,1.26]
[1725697619086,0.43852,2280.8,2280.7,1.69852]
[1725697619679,0.43852,2280.8,2280.7,1.26]
[1725697619876,0.43852,2280.8,2280.7,1.69852]
[1725697620083,0.43852,2280.8,2280.7,1.26]
[1725697620384,0.4385,2280.9,2280.7,1.69852]
[1725697620574,0.4385,2280.9,2280.8,0.3574]
[1725697622585,0.4385,2280.8,2280.7,1.26]
[1725697622979,0.4385,2280.8,2280.7,1.69852]
[1725697623879,0.4385,2280.9,2280.7,1.69852]
[1725697624588,0.43848,2281.0,2280.8,1.69849]
[1725697624787,0.43848,2281.0,2280.9,0.358]
[1725697626678,8.95825763,2281.7,2281.0,0.43846]
[1725697626887,0.43844,2281.2,2281.1,1.6546]
[1725697627976,0.43846,2281.0,2280.9,40.8]
[1725697628175,0.4385,2280.9,2280.8,1.26]
[1725697630186,4.30392,2281.1,2280.8,1.26]
[1725697630387,3.978,2282.1,2281.5,0.43836]
[1725697630585,0.43833,2281.7,2281.6,0.756]
[1725697630786,0.43833,2281.7,2281.6,2.016]
[1725697631486,0.43838,2281.5,2281.4,1.26]
[1725697636387,0.43838,2281.5,2281.2,0.756]
[1725697636388,0.43841,2281.3,2281.2,0.756]
[1725697636591,0.43841,2281.3,2281.2,2.016]
[1725697636988,0.4384,2281.4,2281.2,2.016]
[1725697639295,0.43845,2281.1,2280.8,1.69849]
[1725697639490,0.43844,2281.2,2281.0,1.26]
[1725697639685,0.82094,2281.2,2281.0,1.26]
[1725697640591,0.82094,2281.2,2280.8,1.1678]
[1725697640781,0.43845,2281.1,2281.0,1.26]
[1725697640980,1.19314,2281.2,2281.0,1.26]
[1725697641180,0.43844,2281.2,2281.1,1.26]
[1725697641385,4.30378,2281.4,2281.1,1.69843]
[1725697641386,3.64619,2281.4,2281.1,1.69843]
[1725697641593,3.64619,2281.4,2281.1,1.69844]
[1725697641789,3.64619,2281.4,2281.3,1.26]
[1725697642986,3.2078,2281.4,2281.3,1.26]
[1725697643601,3.2078,2281.4,2281.3,1.6236]
[1725697644094,0.0471,2281.5,2281.3,3.83201]
[1725697644301,0.0471,2281.5,2281.3,3.83199]
[1725697644489,0.0471,2281.5,2281.4,0.43839]
[1725697645192,0.0471,2281.5,2281.4,4.82159]
[1725697648605,0.0471,2281.5,2281.4,8.02939]
[1725697648891,0.43828,2282.0,2281.7,0.43832]
[1725697649095,0.43828,2282.0,2281.8,3.7704]
[1725697649305,0.43828,2282.0,2281.8,4.1387]
[1725697650688,0.43829,2281.9,2281.8,3.7753]
[1725697650893,0.43831,2281.8,2281.6,3.03]
[1725697651094,0.82571,2281.8,2281.6,3.03]
[1725697651891,0.43831,2281.8,2281.6,3.46835]
[1725697652395,0.43831,2281.8,2281.6,3.03]
[1725697652595,0.43831,2281.8,2281.6,3.46835]
[1725697652790,0.43831,2281.8,2281.6,3.03]
[1725697653200,0.43831,2281.8,2281.6,3.46835]
[1725697653991,0.43831,2281.8,2281.6,3.03]
[1725697655485,3.5952,2282.0,2281.6,3.46835]
[1725697655690,0.43832,2281.8,2281.6,3.03]
[1725697656393,0.43833,2281.7,2281.6,3.03]
[1725697656695,0.4384,2281.4,2281.1,7.66543]
[1725697656998,0.4384,2281.4,2281.2,0.7508]
[1725697657304,0.43841,2281.3,2281.2,0.7508]
[1725697657594,2.23161,2281.6,2281.2,0.7508]
[1725697657796,0.43841,2281.4,2281.2,0.7508]
[1725697658103,0.43841,2281.4,2281.2,1.18922]
[1725697658401,0.43841,2281.4,2281.2,1.18923]
[1725697659198,0.43841,2281.4,2281.2,0.7508]
[1725697659495,0.43841,2281.4,2281.2,1.18922]
[1725697661293,0.43841,2281.4,2281.2,0.7508]
[1725697662202,0.43841,2281.4,2281.2,1.18923]
[1725697662790,0.43841,2281.4,2281.2,0.7508]
[1725697663393,0.43838,2281.5,2281.2,0.7508]
[1725697663600,0.43838,2281.5,2281.2,1.18922]
[1725697664005,0.43838,2281.5,2281.4,1.26]
[1725697664204,0.3884,2281.9,2281.4,1.26]
[1725697664411,0.43831,2281.8,2281.7,1.26]
[1725697666001,0.43831,2281.8,2281.6,3.85005]
[1725697666198,0.43831,2281.8,2281.6,3.4117]
[1725697666801,0.43833,2281.7,2281.6,3.4117]
[1725697667008,0.43833,2281.8,2281.6,3.4117]
[1725697667601,0.43833,2281.7,2281.6,3.4117]
[1725697667808,0.43836,2281.6,2281.4,3.03]
[1725697668011,0.43837,2281.5,2281.4,3.4173]
[1725697669313,0.82087,2281.5,2281.4,3.4173]
[1725697671910,5.20407,2281.5,2281.4,3.03]
[1725697672103,0.43841,2281.4,2281.2,3.394]
[1725697672913,0.43841,2281.4,2281.2,3.83243]
[1725697673108,0.82088,2281.5,2281.3,0.43841]
[1725697673417,0.43838,2281.5,2281.4,3.03]
[1725697676110,0.7539,2282.0,2281.4,3.03]
[1725697676304,0.43836,2281.6,2281.4,3.03]
[1725697677219,0.43832,2281.8,2281.5,0.43836]
[1725697677424,0.43832,2281.8,2281.6,0.3921]
[1725697678319,0.43832,2281.8,2281.7,0.3952]
[1725697681227,5.75688751,2282.3,2281.7,0.3952]
[1725697681228,0.43814,2282.7,2282.3,0.4382]
[1725697681517,0.3731,2282.8,2282.5,3.64597]
[1725697681724,0.43809,2283.0,2282.7,3.03]
[1725697682421,0.43807,2283.1,2282.7,3.03]
[1725697682620,0.82501,2282.9,2282.5,3.2078]
[1725697682819,0.82501,2282.9,2282.4,3.03]
[1725697683728,0.43812,2282.8,2282.4,3.03]
[1725697684024,0.7204,2282.8,2282.4,3.03]
[1725697684214,1.15852,2282.8,2282.4,3.03]
[1725697684415,1.15852,2282.8,2282.5,0.3781]
[1725697684909,0.7204,2282.8,2282.5,0.3781]
[1725697685323,1.15853,2282.8,2282.5,0.3781]
[1725697685526,1.15853,2282.8,2282.4,3.3899]
[1725697686116,0.43814,2282.7,2282.4,3.3899]
[1725697686318,1.15853,2282.8,2282.4,3.3899]
[1725697687327,0.7204,2282.8,2282.4,3.3899]
[1725697689421,0.7204,2282.8,2282.4,3.82809]
[1725697689615,0.7204,2282.8,2282.7,3.03]
[1725697692934,0.7204,2282.8,2282.7,3.4226]
[1725697693118,0.3869,2282.9,2282.7,3.4226]
[1725697694236,0.58285924,2283.4,2282.7,3.4226]
[1725697694530,0.58285924,2283.4,2282.5,6.67597]
[1725697694531,0.7375,2282.8,2282.5,6.67597]
[1725697694722,0.7375,2282.8,2282.5,3.03]
[1725697694921,0.365,2282.7,2282.5,3.03]
[1725697695932,0.365,2282.7,2282.5,6.2378]
[1725697696531,0.7375,2282.8,2282.6,0.43816]
[1725697696733,1.1257,2282.8,2282.7,0.43814]
[1725697696933,0.43807,2283.1,2282.6,0.43815]
[1725697697133,0.43808,2283.0,2282.6,0.43815]
[1725697697526,0.3882,2282.9,2282.7,0.3703]
[1725697697830,0.3882,2282.9,2282.7,0.7342]
[1725697698525,0.3686,2282.8,2282.7,0.7342]
[1725697698727,0.7607,2282.8,2282.7,0.3703]
[1725697702135,0.7607,2282.8,2282.7,0.80844]
[1725697702333,0.7607,2282.8,2282.7,0.3703]
[1725697702538,0.7607,2282.8,2282.7,0.80844]
[1725697703335,0.3686,2282.8,2282.7,0.80844]
[1725697703532,0.3882,2282.9,2282.7,0.80844]
[1725697703735,0.3882,2282.9,2282.8,0.43812]
[1725697703929,0.3882,2282.9,2282.7,2.06843]
[1725697704433,0.3882,2282.9,2282.8,0.43812]
[1725697704634,0.83145,2283.2,2282.8,0.43812]
[1725697704825,1.19435,2283.2,2282.8,0.43812]
[1725697705028,0.7563,2283.2,2283.0,0.43808]
[1725697705233,0.7563,2283.2,2283.1,0.43806]
[1725697705533,0.376,2283.3,2283.1,0.43806]
[1725697706233,0.7718,2283.3,2283.2,0.43804]
[1725697706625,1.09478,2283.9,2283.2,10.38]
[1725697706826,0.4379,2284.0,2283.6,0.43796]
[1725697707034,0.4379,2284.0,2283.7,0.7654]
[1725697707231,1.56568,2284.1,2283.7,1.20334]
[1725697707448,1.56568,2284.1,2283.7,0.7654]
[1725697707632,1.56568,2284.1,2283.7,1.20334]
[1725697708035,1.1278,2284.1,2283.7,1.20334]
[1725697708332,1.56568,2284.1,2283.7,0.7654]
[1725697709223,1.56568,2284.1,2283.7,1.20334]
[1725697709628,1.1278,2284.1,2283.8,0.43793]
[1725697709829,1.1278,2284.1,2283.7,1.20333]
[1725697710432,1.56567,2284.1,2283.7,1.20333]
[1725697712733,0.43789,2284.0,2283.7,0.7654]
[1725697713039,0.43792,2283.9,2283.7,0.3828]
[1725697714441,1.1278,2284.1,2283.8,0.43792]
[1725697714635,1.56567,2284.1,2283.9,0.3777]
[1725697715139,0.43786,2284.2,2283.9,0.3777]
[1725697715333,0.3839,2284.0,2283.9,0.3777]
[1725697715739,1.20166,2284.2,2283.9,0.8156]
[1725697716133,4.40946,2284.2,2283.9,0.8156]
[1725697716340,0.7638,2284.2,2283.9,0.8156]
[1725697716538,0.7638,2284.2,2284.0,0.43788]
[1725697716938,0.3839,2284.4,2284.2,0.43785]
[1725697717535,0.3839,2284.4,2284.3,0.43783]
[1725697717730,0.7423,2284.5,2284.3,0.43783]
[1725697720144,0.7423,2284.5,2284.1,0.3833]
[1725697720448,0.7423,2284.5,2284.0,3.5992]
[1725697720449,0.43786,2284.2,2284.0,3.2078]
[1725697720642,0.43784,2284.3,2284.0,0.43788]
[1725697721038,0.3892,2284.4,2283.9,0.81559]
[1725697721039,0.43785,2284.2,2283.9,0.81559]
[1725697721341,0.43785,2284.2,2284.0,0.43789]
[1725697721544,0.43785,2284.2,2283.9,0.81559]
[1725697722149,3.597,2284.4,2283.8,4.197]
[1725697722453,1.48376,2284.4,2283.9,0.8112]
[1725697722642,0.43787,2284.2,2283.9,0.8112]
[1725697723041,6.2378,2284.7,2283.9,0.8112]
[1725697723042,3.2078,2285.2,2284.1,6.2378]
[1725697723239,3.2078,2285.2,2284.4,3.46781]
[1725697723240,0.43776,2284.7,2284.4,3.46781]
[1725697723440,0.43775,2284.8,2284.4,3.46781]
[1725697723748,0.3804,2284.7,2284.5,0.43779]
[1725697724141,0.3804,2284.7,2284.6,0.3627]
[1725697725349,0.43784,2284.3,2284.1,3.2078]
[1725697725554,1.09449,2284.5,2283.9,3.03]
[1725697725852,0.3667,2284.2,2283.9,3.46789]
[1725697726037,0.3833,2284.1,2283.8,0.7211]
[1725697726240,0.7701,2284.1,2283.9,3.03]